bitfinex-derivatives/quotes_BTCF0:USTF0_20250427
["timestamp","ask_amount","ask_price","bid_price","bid_amount"]
[1745774472574,0.9326808,94096.0,94095.0,0.28847707]
[1745774472988,0.9326808,94096.0,94095.0,0.00259397]
[1745774473189,0.2124989,94088.0,94074.0,0.3608]
[1745774473383,0.2125079,94084.0,94079.0,0.0531297]
[1745774473584,0.2656426,94083.0,94082.0,0.2125123]
[1745774473783,0.5595426,94083.0,94082.0,0.2125123]
[1745774474389,1.0595426,94083.0,94082.0,0.2125123]
[1745774474781,1.0595426,94083.0,94082.0,0.22342146]
[1745774475487,1.0595426,94083.0,94082.0,0.22642146]
[1745774477290,1.0595426,94083.0,94082.0,0.36972146]
[1745774478289,0.9867426,94083.0,94082.0,0.36972146]
[1745774481480,0.9867426,94083.0,94082.0,0.15720916]
[1745774481797,0.9867426,94083.0,94082.0,0.01390916]
[1745774482998,0.9867426,94083.0,94082.0,0.08760916]
[1745774483297,0.9336147,94083.0,94082.0,0.30012156]
[1745774486502,0.7211,94083.0,94082.0,0.30012156]
[1745774486800,0.9336102,94083.0,94082.0,0.30012156]
[1745774495502,0.7211,94083.0,94082.0,0.30012156]
[1745774495908,0.65,94083.0,94082.0,0.66092156]
[1745774511517,0.65,94083.0,94082.0,0.29912156]
[1745774516307,0.65,94083.0,94082.0,0.40540956]
[1745774516507,0.33478731,94083.0,94082.0,1.01620956]
[1745774516713,0.23319961,94083.0,94082.0,1.64765956]
[1745774516911,0.22319961,94083.0,94082.0,1.64765956]
[1745774517116,0.12647991,94094.0,94093.0,0.2124876]
[1745774517317,0.12647991,94094.0,94093.0,0.7458036]
[1745774517517,0.12647991,94094.0,94093.0,0.9958036]
[1745774517817,0.21423435,94120.0,94100.0,0.2124718]
[1745774518120,0.26207248,94101.0,94100.0,0.5732718]
[1745774518313,0.26207248,94101.0,94100.0,0.6795398]
[1745774518917,0.26207248,94101.0,94100.0,0.8236398]
[1745774519707,0.1,94101.0,94100.0,0.8236398]
[1745774519912,0.1,94101.0,94100.0,1.1844398]
[1745774520215,0.1,94101.0,94100.0,1.1864398]
[1745774521207,0.1,94101.0,94100.0,1.1854398]
[1745774528118,0.1,94101.0,94100.0,1.0791718]
[1745774530431,0.1413,94110.0,94109.0,0.2124515]
[1745774530634,0.2813,94110.0,94109.0,0.6394515]
[1745774530826,0.7813,94110.0,94109.0,0.6394515]
[1745774531126,0.7118,94110.0,94109.0,0.6394515]
[1745774531425,0.7118,94110.0,94109.0,0.7830515]
[1745774532320,0.7128,94110.0,94109.0,0.7830515]
[1745774532923,0.7128,94110.0,94109.0,0.79667245]
[1745774533120,0.642,94110.0,94109.0,0.90293245]
[1745774533425,0.002,94110.0,94109.0,0.90293245]
[1745774534417,0.001,94110.0,94109.0,0.90293245]
[1745774534626,0.001,94110.0,94109.0,0.90393245]
[1745774535330,0.0709,94124.0,94123.0,0.2124199]
[1745774535629,0.16,94124.0,94123.0,0.5732199]
[1745774536229,0.16,94124.0,94123.0,0.7164199]
[1745774536619,0.162,94124.0,94123.0,0.7164199]
[1745774536822,0.163,94124.0,94123.0,0.7164199]
[1745774537629,0.163,94124.0,94123.0,0.3556199]
[1745774537826,0.163,94124.0,94123.0,0.7164199]
[1745774538925,0.161,94124.0,94123.0,0.7174199]
[1745774539326,0.16,94124.0,94123.0,0.7184199]
[1745774540128,0.16,94124.0,94123.0,0.5752199]
[1745774540636,0.16,94124.0,94123.0,0.6414199]
[1745774541334,0.3047,94124.0,94123.0,0.6404199]
[1745774544931,0.3047,94124.0,94123.0,0.7081199]
[1745774549631,0.3047,94124.0,94123.0,0.7071199]
[1745774550332,0.3047,94124.0,94123.0,0.6404199]
[1745774560542,0.3047,94124.0,94123.0,0.7082199]
[1745774562536,0.29194984,94124.0,94123.0,0.7082199]
[1745774564543,0.29194984,94124.0,94123.0,0.6420199]
[1745774564735,0.29194984,94124.0,94123.0,0.7082199]
[1745774567447,0.14724984,94124.0,94123.0,0.7082199]
[1745774567643,0.14724984,94124.0,94123.0,0.7762199]
[1745774570049,0.14724984,94124.0,94123.0,0.7100199]
[1745774570245,0.0685,94127.0,94126.0,0.2124131]
[1745774570548,0.2085,94127.0,94126.0,0.2124131]
[1745774571439,0.2085,94127.0,94126.0,0.5732131]
[1745774571949,0.2085,94127.0,94126.0,0.7155131]
[1745774577355,0.14,94127.0,94126.0,0.7155131]
[1745774577558,0.12725026,94127.0,94126.0,0.7155131]
[1745774578254,0.071,94132.0,94127.0,0.2124108]
[1745774578645,0.071,94132.0,94127.0,0.3600108]
[1745774579242,0.1652,94128.0,94127.0,0.3600108]
[1745774581558,0.1652,94128.0,94127.0,1.0816108]
[1745774592467,0.1652,94128.0,94127.0,0.9340108]
[1745774593061,0.1652,94128.0,94127.0,0.5732108]
[1745774593265,0.1652,94128.0,94127.0,0.6393708]
[1745774593457,0.1652,94128.0,94127.0,0.5732108]
[1745774593657,0.1652,94128.0,94127.0,0.6393708]
[1745774594557,0.1662,94128.0,94127.0,0.6393708]
[1745774595456,0.1672,94128.0,94127.0,0.6393708]
[1745774598765,0.27344,94128.0,94127.0,0.06616]
[1745774598958,0.2124221,94122.0,94121.0,0.2124244]
[1745774599159,0.3724221,94122.0,94121.0,0.2124244]
[1745774599357,0.4786661,94122.0,94121.0,0.2124244]
[1745774599862,0.6209661,94122.0,94121.0,0.2124244]
[1745774601767,1.1209661,94122.0,94121.0,0.2124244]
[1745774601959,1.1229661,94122.0,94121.0,0.2124244]
[1745774602266,1.1249661,94122.0,94121.0,0.2124244]
[1745774602667,1.1229661,94122.0,94121.0,0.2124244]
[1745774602868,1.1259661,94122.0,94121.0,0.2124244]
[1745774603764,1.1269661,94122.0,94121.0,0.2124244]
[1745774604157,1.1239661,94122.0,94121.0,0.2124244]
[1745774604367,1.1269661,94122.0,94121.0,0.2124244]
[1745774605069,1.1279661,94122.0,94121.0,0.2124244]
[1745774607260,1.1239661,94122.0,94121.0,0.2124244]
[1745774607563,1.1259661,94122.0,94121.0,0.2124244]
[1745774607763,1.1229661,94122.0,94121.0,0.2124244]
[1745774607962,1.1249661,94122.0,94121.0,0.2124244]
[1745774608364,0.912544,94122.0,94121.0,0.2124244]
[1745774609165,0.8063,94122.0,94121.0,0.2124244]
[1745774610870,1.0187221,94122.0,94121.0,0.2124244]
[1745774613860,1.0167221,94122.0,94121.0,0.2124244]
[1745774614063,1.0187221,94122.0,94121.0,0.2124244]
[1745774614270,1.0197221,94122.0,94121.0,0.2124244]
[1745774614463,1.0177221,94122.0,94121.0,0.2124244]
[1745774614661,1.0207221,94122.0,94121.0,0.2124244]
[1745774614970,1.0177221,94122.0,94121.0,0.2124244]
[1745774615268,1.0207221,94122.0,94121.0,0.2124244]
[1745774616571,1.0217221,94122.0,94121.0,0.2124244]
[1745774618278,0.8093,94122.0,94121.0,0.2124244]
[1745774624275,0.7363,94122.0,94121.0,0.2124244]
[1745774625670,0.667,94122.0,94121.0,0.2124244]
[1745774626179,0.42457393,94122.0,94121.0,1.4606984]
[1745774626377,0.42457393,94122.0,94121.0,1.7002984]
[1745774626769,0.13622649,94138.0,94137.0,0.2123883]
[1745774626969,0.23622649,94138.0,94137.0,0.6393483]
[1745774627580,0.23622649,94138.0,94137.0,0.7814483]
[1745774628081,0.73622649,94138.0,94137.0,0.7814483]
[1745774628679,0.6,94138.0,94137.0,0.7814483]
[1745774628880,0.602,94138.0,94137.0,0.78950583]
[1745774629072,0.604,94138.0,94137.0,0.78950583]
[1745774635780,0.604,94138.0,94137.0,0.42870583]
[1745774635985,0.604,94138.0,94137.0,0.78950583]
[1745774636386,0.604,94138.0,94137.0,0.07421753]
[1745774636387,0.816386,94138.0,94137.0,0.07421753]
[1745774636585,0.816386,94138.0,94137.0,0.22044583]
[1745774636885,0.604,94138.0,94137.0,0.28656583]
[1745774637276,0.7507,94138.0,94137.0,0.28656583]
[1745774641788,0.963086,94138.0,94137.0,0.28656583]
[1745774642084,0.963086,94138.0,94137.0,0.07417753]
[1745774642388,0.963086,94138.0,94137.0,0.00805753]
[1745774642573,0.2123883,94137.0,94136.0,0.2123897]
[1745774642773,0.3523883,94137.0,94136.0,0.2123897]
[1745774642974,0.4934883,94137.0,94136.0,0.2123897]
[1745774643679,0.4954883,94137.0,94136.0,0.2123897]
[1745774644177,0.9954883,94137.0,94136.0,0.2123897]
[1745774644785,0.9974883,94137.0,94136.0,0.2123897]
[1745774646180,0.9974883,94137.0,94136.0,0.22016618]
[1745774652995,0.9964883,94137.0,94136.0,0.22016618]
[1745774654793,0.9954883,94137.0,94136.0,0.22016618]
[1745774654993,0.9974883,94137.0,94136.0,0.22016618]
[1745774655194,0.9954883,94137.0,94136.0,0.22016618]
[1745774655491,0.9974883,94137.0,94136.0,0.22016618]
[1745774657885,0.9974883,94137.0,94136.0,0.28756618]
[1745774658289,0.9974883,94137.0,94136.0,0.22016618]
[1745774658592,0.0530997,94133.0,94129.0,0.06612]
[1745774658799,0.2124041,94130.0,94129.0,0.28647476]
[1745774658990,0.3524041,94130.0,94129.0,0.28647476]
[1745774659796,0.8524041,94130.0,94129.0,0.28647476]
[1745774662088,0.8544041,94130.0,94129.0,0.28647476]
[1745774662393,0.8544041,94130.0,94129.0,0.28985476]
[1745774664601,0.8534041,94130.0,94129.0,0.28985476]
[1745774664990,0.8524041,94130.0,94129.0,0.28985476]
[1745774665290,0.8534041,94130.0,94129.0,0.28985476]
[1745774665802,0.8524041,94130.0,94129.0,0.28985476]
[1745774666000,0.8544041,94130.0,94129.0,0.07744906]
[1745774666401,0.8544041,94130.0,94121.0,0.0708]
[1745774666402,0.748236,94130.0,94121.0,0.06612]
[1745774666702,0.748236,94130.0,94116.0,0.0675]
[1745774666703,0.2124334,94117.0,94116.0,0.0675]
[1745774666894,0.3524334,94117.0,94116.0,0.3460557]
[1745774667803,0.4239334,94117.0,94116.0,0.3460557]
[1745774667997,0.4239334,94117.0,94116.0,0.35407395]
[1745774668204,1.0301854,94117.0,94116.0,0.00801825]
[1745774668405,0.2124447,94112.0,94111.0,0.0755]
[1745774668605,0.3424447,94112.0,94111.0,0.0755]
[1745774669301,0.4857447,94112.0,94111.0,0.0755]
[1745774669501,0.4857447,94112.0,94111.0,0.0765]
[1745774670202,0.9857447,94112.0,94111.0,0.0765]
[1745774670405,0.9857447,94112.0,94111.0,0.0775]
[1745774670707,0.9857447,94112.0,94111.0,0.2899469]
[1745774672303,0.9857447,94112.0,94111.0,0.29789277]
[1745774673606,0.9857447,94112.0,94111.0,0.08544587]
[1745774675604,0.9130447,94112.0,94111.0,0.08544587]
[1745774675904,0.8424447,94112.0,94111.0,0.29789277]
[1745774676113,0.8424447,94112.0,94111.0,0.08544587]
[1745774676307,0.8424447,94112.0,94111.0,0.15734587]
[1745774679013,0.8424447,94112.0,94111.0,0.36979277]
[1745774684815,0.63,94112.0,94111.0,0.36979277]
[1745774685215,0.6172481,94112.0,94111.0,0.61979277]
[1745774685416,0.1172481,94112.0,94111.0,0.47604876]
[1745774688630,0.2124184,94124.0,94123.0,0.2124199]
[1745774688818,0.3724184,94124.0,94123.0,0.5732199]
[1745774689218,0.8724184,94124.0,94123.0,0.5732199]
[1745774689618,0.66,94124.0,94123.0,0.5732199]
[1745774689833,0.661,94124.0,94123.0,0.7220199]
[1745774690022,0.662,94124.0,94123.0,0.7220199]
[1745774690217,0.7326,94124.0,94123.0,0.7220199]
[1745774692229,0.9450176,94124.0,94123.0,0.7220199]
[1745774692435,1.0150176,94124.0,94123.0,0.7220199]
[1745774694432,1.0150176,94124.0,94123.0,0.3612199]
[1745774694629,1.0150176,94124.0,94123.0,0.7220199]
[1745774695535,1.0150176,94124.0,94123.0,0.3608]
[1745774696532,0.2655354,94122.0,94121.0,0.0531057]
[1745774696734,0.3724289,94122.0,94121.0,0.2655301]
[1745774697037,0.4423289,94122.0,94121.0,0.2655301]
[1745774697435,0.9423289,94122.0,94121.0,0.2655301]
[1745774697637,1.0110289,94122.0,94121.0,0.2655301]
[1745774697829,1.0120289,94122.0,94121.0,0.2655301]
[1745774698532,1.0130289,94122.0,94121.0,0.2655301]
[1745774701637,0.9443289,94122.0,94121.0,0.2655301]
[1745774703432,1.0141289,94122.0,94121.0,0.2655301]
[1745774708944,1.0141289,94122.0,94121.0,0.2124244]
[1745774718555,1.0141289,94122.0,94121.0,0.2876244]
[1745774722949,1.0141289,94122.0,94121.0,0.2124244]
[1745774723251,0.2124289,94120.0,94119.0,0.2124279]
[1745774723452,0.0531127,94110.0,94098.0,0.21546871]
[1745774723658,0.5732628,94104.0,94099.0,0.0693]
[1745774723955,0.2124718,94100.0,94099.0,0.21546871]
[1745774724250,0.3524718,94100.0,94099.0,0.21546871]
[1745774725056,0.9587438,94100.0,94099.0,0.21546871]
[1745774725252,0.8524718,94100.0,94099.0,0.42794271]
[1745774725658,0.8524718,94100.0,94099.0,0.43194271]
[1745774726050,0.8544718,94100.0,94099.0,0.43194271]
[1745774726647,0.8544718,94100.0,94099.0,0.43991197]
[1745774727562,0.8554718,94100.0,94099.0,0.43591197]
[1745774728459,0.8554718,94100.0,94099.0,0.22044326]
[1745774728852,0.8554718,94100.0,94099.0,0.00796926]
[1745774729160,0.212474,94099.0,94098.0,0.2124748]
[1745774729462,0.2124763,94098.0,94097.0,0.28387224]
[1745774729652,0.3724763,94098.0,94097.0,0.28387224]
[1745774729852,0.5105763,94098.0,94097.0,0.28387224]
[1745774730657,0.5105763,94098.0,94097.0,0.22560606]
[1745774730854,0.5105763,94098.0,94097.0,0.01312746]
[1745774731055,1.0115763,94098.0,94097.0,0.01312746]
[1745774732155,1.0125763,94098.0,94097.0,0.01312746]
[1745774739759,0.9426763,94098.0,94097.0,0.29590606]
[1745774739954,0.662,94098.0,94097.0,0.29590606]
[1745774740156,0.8744763,94098.0,94097.0,0.29590606]
[1745774740461,0.8744763,94098.0,94097.0,0.36640606]
[1745774742360,0.8744763,94098.0,94097.0,0.15392746]
[1745774743063,0.8744763,94098.0,94097.0,0.51019946]
[1745774743262,0.57220859,94098.0,94097.0,1.61483806]
[1745774743467,0.3887,94098.0,94097.0,1.61483806]
[1745774743669,0.0735,94123.0,94122.0,0.2124221]
[1745774743858,0.13,94123.0,94122.0,0.6263272]
[1745774744758,0.132,94123.0,94122.0,0.63818256]
[1745774745768,0.131,94123.0,94122.0,0.63818256]
[1745774745957,0.132,94123.0,94122.0,0.63818256]
[1745774747257,0.132,94123.0,94122.0,0.78258256]
[1745774759974,0.132,94123.0,94122.0,0.42178256]
[1745774760177,0.132,94123.0,94122.0,0.78258256]
[1745774769179,0.132,94123.0,94122.0,0.63818256]
[1745774776777,0.132,94123.0,94122.0,0.27738256]
[1745774777074,0.132,94123.0,94122.0,0.63818256]
[1745774788686,0.132,94123.0,94122.0,0.70422256]
[1745774793396,0.132,94123.0,94122.0,0.77782256]
[1745774794596,0.002,94123.0,94122.0,0.87782256]
[1745774796093,0.132,94123.0,94122.0,0.87782256]
[1745774796700,0.132,94123.0,94122.0,0.81178256]
[1745774796901,0.132,94123.0,94122.0,0.87782256]
[1745774797794,0.132,94123.0,94122.0,0.51702256]
[1745774797987,0.132,94123.0,94122.0,1.23862256]
[1745774800797,0.132,94123.0,94122.0,0.51702256]
[1745774801200,0.132,94123.0,94122.0,1.23862256]
[1745774802514,0.132,94123.0,94122.0,0.80422256]
[1745774802699,0.132,94123.0,94122.0,0.65111746]
[1745774803395,0.7006639,94123.0,94122.0,0.43869536]
[1745774803595,0.7006639,94123.0,94122.0,0.58507746]
[1745774803799,0.132,94123.0,94122.0,0.58507746]
[1745774804003,0.632,94123.0,94122.0,0.58507746]
[1745774805398,0.9861199,94123.0,94122.0,0.58507746]
[1745774806311,0.7737,94123.0,94122.0,0.58507746]
[1745774807706,0.7737,94123.0,94122.0,0.22427746]
[1745774811999,0.7737,94123.0,94122.0,0.29031746]
[1745774813806,0.7737,94123.0,94122.0,0.65111746]
[1745774814818,0.7737,94123.0,94122.0,0.29031746]
[1745774815009,0.7737,94123.0,94122.0,0.65111746]
[1745774816008,0.7737,94123.0,94122.0,0.72351746]
[1745774816715,0.2737,94123.0,94122.0,0.72351746]
[1745774824011,0.2737,94123.0,94122.0,0.65111746]
[1745774825026,0.2727,94123.0,94122.0,0.65311746]
[1745774825623,0.2717,94123.0,94122.0,0.65311746]
[1745774825820,0.2717,94123.0,94122.0,0.65511746]
[1745774826417,0.2717,94123.0,94122.0,0.65311746]
[1745774826617,0.2717,94123.0,94122.0,0.65411746]
[1745774826927,0.13,94123.0,94122.0,0.65411746]
[1745774827226,0.13,94123.0,94122.0,0.72651746]
[1745774827620,0.13,94123.0,94122.0,0.79871746]
[1745774828018,0.2131,94132.0,94122.0,0.79671746]
[1745774828216,0.3731,94132.0,94131.0,0.5732018]
[1745774828817,0.8731,94132.0,94131.0,0.5732018]
[1745774829230,0.66,94132.0,94131.0,0.5732018]
[1745774829620,0.66,94132.0,94131.0,0.7124018]
[1745774829821,0.661,94132.0,94131.0,0.7124018]
[1745774830221,0.161,94132.0,94131.0,0.7124018]
[1745774831423,0.001,94132.0,94131.0,0.7124018]
[1745774832129,0.1439,94141.0,94140.0,0.2123815]
[1745774832330,0.1639,94141.0,94140.0,0.6392215]
[1745774833025,0.1639,94141.0,94140.0,0.7846215]
[1745774833222,0.1659,94141.0,94140.0,0.7846215]
[1745774834931,0.1669,94141.0,94140.0,0.7846215]
[1745774837540,0.1669,94141.0,94140.0,0.4238215]
[1745774837741,0.1669,94141.0,94140.0,0.7846215]
[1745774838635,0.1669,94141.0,94140.0,0.7094215]
[1745774839448,0.1669,94141.0,94140.0,0.3486215]
[1745774839642,0.1669,94141.0,94140.0,0.7094215]
[1745774839844,0.2869,94141.0,94140.0,0.2784215]
[1745774840045,0.2869,94141.0,94140.0,0.2123815]
[1745774840639,0.7869,94141.0,94138.0,0.212385]
[1745774840839,0.2123878,94138.0,94136.0,0.06604]
[1745774841044,0.2844883,94137.0,94136.0,0.265488]
[1745774841247,0.4344883,94137.0,94136.0,0.265488]
[1745774842543,0.9354883,94137.0,94136.0,0.265488]
[1745774842746,0.2654958,94135.0,94134.0,0.2123945]
[1745774842948,0.3623973,94135.0,94134.0,0.2123945]
[1745774843143,0.4686293,94135.0,94134.0,0.2123945]
[1745774843646,0.4686293,94135.0,94132.0,0.06604]
[1745774843647,0.2123973,94133.0,94132.0,0.2784385]
[1745774843856,0.2655071,94131.0,94130.0,0.0531006]
[1745774844050,0.7763071,94131.0,94130.0,0.0531006]
[1745774844351,1.6637231,94131.0,94130.0,0.0531006]
[1745774844556,1.8056231,94131.0,94130.0,0.0531006]
[1745774844751,1.8056231,94131.0,94130.0,0.2655047]
[1745774844949,1.5932168,94131.0,94126.0,0.0531032]
[1745774845142,0.2124176,94126.0,94125.0,0.2124063]
[1745774845342,0.3424176,94126.0,94125.0,0.2124063]
[1745774845649,1.3717676,94126.0,94125.0,0.2124063]
[1745774845838,1.1217676,94126.0,94125.0,0.2124063]
[1745774846038,0.5905576,94126.0,94125.0,0.2124063]
[1745774846446,1.0905576,94126.0,94125.0,0.2124063]
[1745774847345,1.0915576,94126.0,94125.0,0.2124063]
[1745774848049,1.0925576,94126.0,94125.0,0.2124063]
[1745774848239,1.0935576,94126.0,94125.0,0.2124063]
[1745774851542,0.2124311,94118.0,94117.0,0.2784644]
[1745774851750,0.3524311,94118.0,94117.0,0.2784644]
[1745774852350,0.9947311,94118.0,94117.0,0.3315723]
[1745774852745,0.9947311,94118.0,94117.0,0.3325723]
[1745774861059,0.9947311,94118.0,94117.0,0.4060723]
[1745774866355,0.7823,94118.0,94117.0,0.4050723]
[1745774866560,0.64,94118.0,94117.0,0.4060723]
[1745774866760,0.64,94118.0,94117.0,0.4785723]
[1745774869352,0.8524311,94118.0,94117.0,0.4785723]
[1745774869550,0.64,94118.0,94117.0,0.4775723]
[1745774869752,0.64,94118.0,94117.0,0.4785723]
[1745774869952,0.7154,94118.0,94117.0,0.4785723]
[1745774871056,0.64,94118.0,94117.0,0.4785723]
[1745774872060,0.14,94118.0,94117.0,0.4785723]
[1745774878473,0.14,94118.0,94117.0,0.8393723]
[1745774881876,0.14,94118.0,94117.0,0.4785723]
[1745774882066,0.14,94118.0,94117.0,0.8393723]
[1745774886077,0.14,94118.0,94117.0,0.4785723]
[1745774886279,0.14,94118.0,94117.0,0.8393723]
[1745774887280,0.14,94118.0,94117.0,0.7668723]
[1745774889383,0.14,94118.0,94117.0,0.4060723]
[1745774889580,0.14,94118.0,94117.0,0.7668723]
[1745774891581,0.14,94118.0,94117.0,0.4060723]
[1745774891770,0.14,94118.0,94117.0,0.7668723]
[1745774898590,0.14,94118.0,94117.0,0.7668323]
[1745774904907,0.14,94118.0,94117.0,0.4060323]
[1745774905206,0.14,94118.0,94117.0,0.7668323]
[1745774906307,0.14,94118.0,94117.0,0.6933323]
[1745774906508,0.3524311,94118.0,94117.0,0.001]
[1745774907401,0.4925311,94118.0,94117.0,0.001]
[1745774907712,0.4925311,94118.0,94117.0,0.2134334]
[1745774908211,0.9925311,94118.0,94117.0,0.2134334]
[1745774908411,0.9925311,94118.0,94117.0,0.2124334]
[1745774909613,0.9935311,94118.0,94117.0,0.2124334]
[1745774909911,0.9945311,94118.0,94117.0,0.2124334]
[1745774910801,0.9965311,94118.0,94117.0,0.2124334]
[1745774911901,0.9955311,94118.0,94117.0,0.2124334]
[1745774912201,0.9975311,94118.0,94117.0,0.2124334]
[1745774912813,0.9955311,94118.0,94117.0,0.2124334]
[1745774913015,0.9975311,94118.0,94117.0,0.2124334]
[1745774919316,0.2124402,94114.0,94113.0,0.01143739]
[1745774919518,0.2124469,94112.0,94111.0,0.0531113]
[1745774919820,0.3524469,94112.0,94111.0,0.0531113]
[1745774920420,0.4285469,94112.0,94111.0,0.0531113]
[1745774920618,0.5028469,94112.0,94111.0,0.0531113]
[1745774920819,1.0028469,94112.0,94111.0,0.2655582]
[1745774921821,1.0038469,94112.0,94111.0,0.27680527]
[1745774922317,1.0048469,94112.0,94111.0,0.27680527]
[1745774926415,1.0048469,94112.0,94111.0,0.35160527]
[1745774933924,1.0048469,94112.0,94111.0,0.29849397]
[1745774934230,0.2124763,94098.0,94096.0,0.42676]
[1745774934526,0.3424763,94098.0,94097.0,0.22560466]
[1745774935425,0.4870763,94098.0,94097.0,0.22960466]
[1745774935726,0.9870763,94098.0,94097.0,0.22960466]
[1745774936530,0.9870763,94098.0,94097.0,0.02859946]
[1745774937424,0.9870763,94098.0,94097.0,0.02759946]
[1745774937815,0.9870763,94098.0,94097.0,0.23807806]
[1745774938033,0.9870763,94098.0,94097.0,0.23707806]
[1745774938525,0.9880763,94098.0,94097.0,0.23707806]
[1745774938922,0.9880763,94098.0,94097.0,0.02459946]
[1745774939121,0.9890763,94098.0,94097.0,0.02459946]
[1745774939426,0.9890763,94098.0,94097.0,0.23707806]
[1745774942833,0.9890763,94098.0,94097.0,0.22560606]
[1745774943725,0.9890763,94098.0,94097.0,0.23676841]
[1745774946932,0.7053,94098.0,94097.0,0.23676841]
[1745774947527,0.7053,94098.0,94097.0,0.31116841]
[1745774947827,0.9177763,94098.0,94097.0,0.31116841]
[1745774948535,0.7053,94098.0,94097.0,0.31116841]
[1745774951125,0.7053,94098.0,94097.0,0.67196841]
[1745774951526,0.7053,94098.0,94097.0,0.31116841]
[1745774951726,0.7053,94098.0,94097.0,0.67196841]
[1745774952232,0.9177763,94098.0,94097.0,0.67196841]
[1745774956138,0.7053,94098.0,94097.0,0.67196841]
[1745774959141,0.7053,94098.0,94097.0,0.31116841]
[1745774959340,0.7053,94098.0,94097.0,0.67196841]
[1745774962737,0.7053,94098.0,94097.0,0.59756841]
[1745774963132,0.7053,94098.0,94097.0,0.66352841]
[1745774963333,0.7727,94098.0,94097.0,0.66352841]
[1745774964040,0.9851763,94098.0,94097.0,0.66352841]
[1745774964442,0.9851763,94098.0,94097.0,0.59756841]
[1745774964632,0.7727,94098.0,94097.0,0.59756841]
[1745774965635,0.7727,94098.0,94097.0,0.66586841]
[1745774965842,0.7727,94098.0,94097.0,0.59756841]
[1745774966744,0.7727,94098.0,94097.0,0.23676841]
[1745774971042,0.7727,94098.0,94097.0,0.59756841]
[1745774971942,0.7727,94098.0,94097.0,0.23676841]
[1745774972146,0.7727,94098.0,94097.0,0.59756841]
[1745774980054,0.7727,94098.0,94097.0,0.66876841]
[1745774987942,0.7727,94098.0,94097.0,0.30796841]
[1745774988142,0.7727,94098.0,94097.0,0.66876841]
[1745774989852,0.7727,94098.0,94097.0,0.59756841]
[1745774994445,0.7727,94098.0,94097.0,0.23676841]
[1745774994646,0.7727,94098.0,94097.0,0.59756841]
[1745775000252,0.7727,94098.0,94097.0,0.66348841]
[1745775001156,0.7727,94098.0,94097.0,0.30268841]
[1745775001357,0.7727,94098.0,94097.0,0.66348841]
[1745775003554,0.7727,94098.0,94097.0,0.30268841]
[1745775003758,0.7727,94098.0,94097.0,0.66348841]
[1745775003963,0.7727,94098.0,94097.0,0.30268841]
[1745775004165,0.7727,94098.0,94097.0,0.66348841]
[1745775010470,0.7727,94098.0,94097.0,0.30268841]
[1745775010761,0.7727,94098.0,94097.0,0.66348841]
[1745775011660,0.7727,94098.0,94097.0,0.30268841]
[1745775011857,0.7727,94098.0,94097.0,0.66348841]
[1745775014068,0.7727,94098.0,94097.0,0.30268841]
[1745775014256,0.7727,94098.0,94097.0,0.66348841]
[1745775015457,0.7727,94098.0,94097.0,0.30268841]
[1745775015769,0.7727,94098.0,94097.0,0.66348841]
[1745775016069,0.7727,94098.0,94097.0,0.30268841]
[1745775016269,0.7727,94098.0,94097.0,0.66348841]
[1745775017068,0.7727,94098.0,94097.0,0.30268841]
[1745775017269,0.7727,94098.0,94097.0,0.66348841]
[1745775018661,0.7727,94098.0,94097.0,0.30268841]
[1745775018862,0.7727,94098.0,94097.0,0.66348841]
[1745775020477,0.7727,94098.0,94097.0,0.30268841]
[1745775020974,0.7727,94098.0,94097.0,0.66348841]
[1745775022380,0.7727,94098.0,94097.0,0.30268841]
[1745775022581,0.7727,94098.0,94097.0,0.66348841]
[1745775023476,0.7727,94098.0,94097.0,0.30268841]
[1745775023773,0.7727,94098.0,94097.0,0.66348841]
[1745775027264,0.7727,94098.0,94097.0,0.59756841]
[1745775027476,0.7727,94098.0,94097.0,0.66348841]
[1745775031584,0.7727,94098.0,94097.0,0.30268841]
[1745775040289,0.7727,94098.0,94097.0,0.37608841]
[1745775040877,0.7727,94098.0,94097.0,0.44358841]
[1745775041184,0.236923,94098.0,94097.0,0.64986041]
[1745775042381,0.236923,94098.0,94097.0,0.76986041]
[1745775042781,0.001,94098.0,94097.0,0.76986041]
[1745775042988,0.0741,94108.0,94107.0,0.212456]
[1745775043183,0.0741,94108.0,94107.0,0.573256]
[1745775043990,0.0771,94108.0,94107.0,0.573256]
[1745775044286,0.0771,94108.0,94107.0,0.709956]
[1745775044987,0.0781,94108.0,94107.0,0.709956]
[1745775046985,0.2281,94108.0,94107.0,0.709956]
[1745775047389,0.2281,94108.0,94107.0,0.639136]
[1745775049490,0.2281,94108.0,94107.0,0.573256]
[1745775049691,0.2281,94108.0,94107.0,0.639136]
[1745775049887,0.2281,94108.0,94107.0,0.710936]
[1745775050190,0.0781,94108.0,94107.0,0.810936]
[1745775052780,0.2181,94108.0,94107.0,0.810936]
[1745775052975,0.0781,94108.0,94107.0,0.810936]
[1745775059491,0.2281,94108.0,94107.0,0.810936]
[1745775060496,0.2281,94108.0,94107.0,0.450136]
[1745775060698,0.2281,94108.0,94107.0,1.171736]
[1745775060881,0.0781,94108.0,94107.0,1.171736]
[1745775061398,0.2281,94108.0,94107.0,1.171736]
[1745775062499,0.0781,94108.0,94107.0,0.450136]
[1745775062794,0.0781,94108.0,94107.0,1.171736]
[1745775063402,0.2381,94108.0,94107.0,1.171736]
[1745775063588,0.2381,94108.0,94107.0,1.099936]
[1745775063894,0.2381,94108.0,94107.0,0.934056]
[1745775064094,0.2381,94108.0,94107.0,0.999896]
[1745775069186,0.2381,94108.0,94107.0,0.639096]
[1745775075603,0.2381,94108.0,94107.0,0.278296]
[1745775075802,0.2381,94108.0,94107.0,0.639096]
[1745775077990,0.4505537,94108.0,94107.0,0.639096]
[1745775078189,0.2381,94108.0,94107.0,0.639096]
[1745775086614,0.2381,94108.0,94107.0,0.278296]
[1745775086798,0.2381,94108.0,94107.0,0.639096]
[1745775111632,0.2381,94108.0,94107.0,0.278296]
[1745775111823,0.2381,94108.0,94107.0,0.639096]
[1745775113421,0.2381,94108.0,94107.0,0.278296]
[1745775114031,0.2381,94108.0,94107.0,0.639096]
[1745775114421,0.2381,94108.0,94107.0,0.278296]
[1745775114617,0.2381,94108.0,94107.0,0.639096]
[1745775124142,0.2381,94108.0,94107.0,0.278296]
[1745775124441,0.2381,94108.0,94107.0,0.639096]
[1745775126747,0.2381,94108.0,94107.0,0.278296]
[1745775126950,0.2381,94108.0,94107.0,0.639096]
[1745775128450,0.2381,94108.0,94107.0,0.278296]